bitfinex/quotes_SOLUSD_20250918
["timestamp","ask_amount","ask_price","bid_price","bid_amount"]
[1758177008035,0.7,242.91,242.83,0.66]
[1758177008213,4.81681631,242.91,242.83,0.66]
[1758177008630,0.7,242.91,242.83,0.66]
[1758177008943,0.7,242.94,242.83,0.94432314]
[1758177009241,0.7,242.93,242.83,0.28432314]
[1758177009642,0.7,242.93,242.84,0.66]
[1758177011245,0.7,242.93,242.85,4.11776816]
[1758177011449,0.06,242.96,242.85,4.11776816]
[1758177011450,0.7,242.92,242.85,4.11776816]
[1758177012840,4.81668152,242.92,242.85,4.11776816]
[1758177013946,0.7,242.91,242.82,0.66]
[1758177014349,0.7,242.93,242.82,0.66]
[1758177014733,0.7,242.93,242.83,14.4133756]
[1758177014946,0.7,242.93,242.84,0.66]
[1758177016052,4.81647012,242.93,242.84,0.66]
[1758177017136,4.81647012,242.93,242.85,4.11776816]
[1758177017447,0.7,242.92,242.81,4.11844652]
[1758177017623,0.7,242.91,242.81,4.11844652]
[1758177017831,0.7,242.9,242.81,4.11844652]
[1758177018139,0.7,242.89,242.81,4.11844652]
[1758177019451,0.7,242.88,242.78,0.03]
[1758177021456,4.11742907,242.87,242.78,0.03]
[1758177021757,0.7,242.86,242.78,0.03]
[1758177021946,0.7,242.86,242.79,0.66]
[1758177022652,0.7,242.86,242.78,0.03]
[1758177023555,4.81761362,242.86,242.78,0.03]
[1758177025649,0.7,242.86,242.78,0.03]
[1758177026037,4.81762575,242.86,242.78,0.03]
[1758177030468,26.0,242.83,242.78,0.03]
[1758177030848,26.0,242.83,242.63,0.68]
[1758177030849,0.7,242.82,242.63,0.68]
[1758177031050,0.7,242.82,242.64,13.59559401]
[1758177031449,26.0,242.81,242.73,0.03]
[1758177031658,0.7,242.8,242.73,0.03]
[1758177033172,4.81865467,242.8,242.73,0.03]
[1758177034471,0.7,242.8,242.73,0.03]
[1758177035950,4.81867879,242.8,242.73,0.03]
[1758177037170,15.11521915,242.8,242.73,0.03]
[1758177038261,4.81867879,242.8,242.73,0.03]
[1758177039378,15.11521915,242.8,242.73,0.03]
[1758177040488,26.0,242.77,242.73,0.03]
[1758177040665,4.11929477,242.76,242.73,0.03]
[1758177040881,4.79929477,242.76,242.73,0.03]
[1758177041755,30.79929477,242.76,242.73,0.03]
[1758177042349,4.79929477,242.76,242.73,0.03]
[1758177042549,15.09753171,242.76,242.73,0.03]
[1758177044670,30.79929477,242.76,242.73,0.03]
[1758177046058,41.09753171,242.76,242.73,0.03]
[1758177046273,15.09753171,242.76,242.73,0.03]
[1758177047382,30.79929477,242.76,242.73,0.03]
[1758177047884,4.79929477,242.76,242.73,0.03]
[1758177048290,0.68,242.75,242.73,0.03]
[1758177048892,26.0,242.74,242.73,0.03]
[1758177049065,0.68,242.75,242.73,0.03]
[1758177049380,0.68,242.74,242.73,0.03]
[1758177051669,4.7991944,242.77,242.73,0.03]
[1758177051876,10.2969216,242.8,242.73,0.03]
[1758177051877,0.68,242.8,242.73,0.03]
[1758177052272,4.79866909,242.8,242.73,0.03]
[1758177054474,15.09520945,242.8,242.73,0.03]
[1758177055787,26.0,242.77,242.73,0.03]
[1758177056164,0.68,242.76,242.73,0.03]
[1758177056783,4.11946446,242.75,242.73,0.03]
[1758177057169,0.68,242.74,242.73,0.03]
[1758177057884,0.68,242.78,242.73,0.03]
[1758177058265,0.68,242.77,242.73,0.03]
[1758177058477,10.29535396,242.83,242.73,0.03]
[1758177058661,0.68,242.8,242.73,0.03]
[1758177058866,4.79866747,242.8,242.73,0.03]
[1758177059770,15.09520783,242.8,242.73,0.03]
[1758177060174,41.09520783,242.8,242.73,0.03]
[1758177060795,26.0,242.77,242.73,0.03]
[1758177060977,4.11929477,242.76,242.73,0.03]
[1758177061171,4.83929477,242.76,242.73,0.03]
[1758177061574,0.72,242.75,242.73,0.03]
[1758177062095,26.0,242.78,242.73,0.03]
[1758177062267,0.72,242.75,242.73,0.03]
[1758177062671,0.72,242.74,242.73,0.03]
[1758177063899,26.72,242.74,242.73,0.03]
[1758177064075,30.83963417,242.74,242.73,0.03]
[1758177067584,4.11963417,242.74,242.73,0.03]
[1758177067774,4.77963417,242.74,242.73,0.03]
[1758177069093,4.11963417,242.74,242.73,0.03]
[1758177069700,4.77963417,242.74,242.73,0.03]
[1758177070405,4.11963417,242.74,242.73,0.03]
[1758177071187,0.06,242.75,242.73,0.03]
[1758177071577,4.17952227,242.75,242.73,0.03]
[1758177071780,0.66,242.74,242.73,0.03]
[1758177073182,26.66,242.74,242.73,0.03]
[1758177073410,0.66,242.74,242.73,0.03]
[1758177074715,0.06,242.75,242.73,0.03]
[1758177076085,4.17949914,242.75,242.73,0.03]
[1758177078306,4.83949914,242.75,242.73,0.03]
[1758177078616,0.06,242.75,242.73,0.03]
[1758177079012,4.17949088,242.75,242.73,0.03]
[1758177079312,26.66,242.74,242.73,0.03]
[1758177083394,0.66,242.74,242.73,0.03]
[1758177083811,4.17949088,242.75,242.73,0.03]
[1758177085623,0.06,242.75,242.73,0.03]
[1758177085922,0.06,242.75,242.74,0.67]
[1758177086626,0.06,242.75,242.73,0.03]
[1758177086837,0.06,242.75,242.73,0.7]
[1758177087130,0.06,242.75,242.74,0.67]
[1758177087510,0.06,242.75,242.73,0.03]
[1758177087834,0.06,242.75,242.73,0.7]
[1758177088008,0.06,242.75,242.74,0.67]
[1758177088706,0.06,242.75,242.73,0.03]
[1758177088900,0.06,242.75,242.73,0.7]
[1758177089827,0.06,242.75,242.73,0.03]
[1758177090328,0.06,242.75,242.73,0.7]
[1758177090547,2.09494274,242.74,242.73,0.7]
[1758177090704,2.09494274,242.74,242.73,0.03]
[1758177091111,2.75494274,242.74,242.73,0.03]
[1758177092529,4.17949535,242.75,242.73,0.03]
[1758177092749,0.06,242.75,242.73,0.7]
[1758177092946,0.06,242.75,242.73,0.74]
[1758177093357,0.06,242.75,242.74,0.71]
[1758177095425,2.15494274,242.75,242.73,0.03]
[1758177095645,2.09494274,242.74,242.73,0.03]
[1758177096145,2.75494274,242.74,242.73,0.03]
[1758177096327,0.66,242.74,242.73,0.03]
[1758177096647,2.75494274,242.74,242.73,0.03]
[1758177099551,4.84988548,242.74,242.73,0.03]
[1758177099944,2.75494274,242.74,242.73,0.03]
[1758177101238,4.84988548,242.74,242.73,0.03]
[1758177103834,26.66,242.74,242.73,0.03]
[1758177104138,30.84988548,242.74,242.73,0.03]
[1758177105848,30.84988548,242.74,242.73,1.03]
[1758177109150,28.09494274,242.74,242.73,1.03]
[1758177109341,28.75494274,242.74,242.73,1.03]
[1758177109752,0.66,242.74,242.73,1.03]
[1758177109933,2.75494274,242.74,242.73,1.03]
[1758177110343,2.09494274,242.74,242.73,1.03]
[1758177110545,4.17951054,242.75,242.73,1.74]
[1758177110546,0.06,242.75,242.73,1.74]
[1758177110733,0.06,242.75,242.74,0.71]
[1758177115657,0.06,242.75,242.74,14.58991715]
[1758177117253,0.06,242.75,242.74,15.08991715]
[1758177119960,1e-08,242.75,242.74,15.08991715]
[1758177120270,1e-08,242.78,242.74,15.08991715]
[1758177120465,1e-08,242.78,242.77,39.59559401]
[1758177120757,1e-08,242.8,242.78,13.59559401]
[1758177120965,1e-08,242.8,242.78,14.27559401]
[1758177121284,1e-08,242.8,242.79,40.27559401]
[1758177122351,1e-08,242.8,242.79,44.67870293]
[1758177123676,1e-08,242.8,242.79,64.67870293]
[1758177125649,1e-08,242.8,242.79,145.47870293]
[1758177126271,1e-08,242.8,242.79,64.53654136]
[1758177126567,1e-08,242.8,242.79,38.67870293]
[1758177126870,1e-08,242.8,242.79,38.53654136]
[1758177127179,1e-08,242.8,242.79,38.67870293]
[1758177128057,1e-08,242.8,242.79,39.0905815]
[1758177128454,1e-08,242.8,242.79,38.67870293]
[1758177128867,1e-08,242.8,242.79,39.0905815]
[1758177129254,0.7,242.93,242.83,39.59559401]
[1758177129454,0.7,242.93,242.89,0.28432314]
[1758177129663,0.06,242.96,242.88,39.59559401]
[1758177129868,0.7,242.92,242.88,39.59559401]
[1758177130069,0.7,242.91,242.88,39.59559401]
[1758177130454,0.06,242.96,242.88,39.59559401]
[1758177130655,0.7,242.94,242.89,0.28432314]
[1758177130875,0.06,242.96,242.89,0.28432314]
[1758177130876,0.7,242.93,242.89,0.28432314]
[1758177131248,0.06,242.96,242.9,4.11692054]
[1758177131449,0.7,242.92,242.9,4.11692054]
[1758177131665,0.7,242.91,242.88,4.11713379]
[1758177131858,0.7,242.9,242.88,4.11713379]
[1758177132073,0.7,242.89,242.88,30.11713379]
[1758177132255,0.7,242.89,242.88,4.11713379]
[1758177133378,0.7,242.89,242.86,30.11750633]
[1758177133579,0.7,242.88,242.86,30.11750633]
[1758177133775,0.06,242.96,242.86,30.11750633]
[1758177133776,0.7,242.91,242.86,30.11750633]
[1758177133953,0.7,242.9,242.86,4.11750633]
[1758177134150,0.06,242.96,242.93,26.0]
[1758177134371,0.06,242.96,242.94,0.28432314]
[1758177134682,0.06,242.96,242.95,39.87991715]
[1758177135158,0.06,242.96,242.95,43.99599041]
[1758177137579,0.06,242.96,242.95,44.71599041]
[1758177137990,0.06,242.96,242.95,43.99599041]
[1758177138796,0.06,242.96,242.95,44.99599041]
[1758177144062,0.06,242.96,242.95,45.71599041]
[1758177145288,1e-08,242.97,242.96,0.28432314]
[1758177145605,1e-08,242.97,242.96,14.59991715]
[1758177147083,1e-08,242.97,242.96,13.87991715]
[1758177148189,1e-08,242.97,242.96,14.59991715]
[1758177149369,1e-08,242.99,242.98,39.87991715]
[1758177149869,1e-08,242.99,242.98,40.59991715]
[1758177150071,1e-08,243.0,242.98,40.59991715]
[1758177150713,0.7,243.08,242.99,0.72]
[1758177150873,0.7,243.07,242.99,0.72]
[1758177151183,0.7,243.07,243.04,26.0]
[1758177151496,0.7,243.06,243.04,26.0]
[1758177151680,0.7,243.05,243.04,26.0]
[1758177152693,0.7,243.05,243.04,30.11454904]
[1758177153802,0.7,243.05,243.04,43.71014305]
[1758177153980,0.69,243.08,243.05,13.59559401]
[1758177154182,0.69,243.07,243.06,0.14216157]
[1758177154801,0.69,243.07,243.06,17.99412763]
[1758177155299,0.69,243.07,243.06,17.70980449]
[1758177156405,0.69,243.07,243.03,30.11466639]
[1758177156612,0.69,243.06,243.03,30.11466639]
[1758177156812,1.5054819,243.08,243.03,30.11466639]
[1758177156813,0.69,243.05,243.03,30.11466639]
[1758177156987,0.69,243.04,243.03,30.11466639]
[1758177160537,0.69,243.06,243.03,40.40146225]
[1758177162824,0.69,243.05,243.03,40.40146225]
[1758177164708,0.06,243.07,243.03,30.11466639]
[1758177164914,0.69,243.06,243.03,30.11466639]
[1758177165113,0.69,243.05,243.03,30.11466639]
[1758177165315,0.69,243.04,243.03,30.11466639]
[1758177165910,0.69,243.04,243.01,0.03]
[1758177166112,1.5654819,243.07,243.03,26.0]
[1758177166324,1.5654819,243.07,243.01,0.03]
[1758177166325,0.06,243.07,243.05,0.14216157]
[1758177166622,0.06,243.07,243.05,0.28432314]
[1758177166924,0.06,243.07,243.06,17.99412763]
[1758177168127,0.75,243.07,243.01,0.03]
[1758177168327,0.75,243.07,243.03,4.11468735]
[1758177168628,0.75,243.07,243.05,26.0]
[1758177168629,0.69,243.06,243.05,26.0]
[1758177168930,0.69,243.06,243.05,30.11437975]
[1758177169308,0.06,243.07,243.05,30.11437975]
[1758177169523,0.75,243.07,243.05,30.11437975]
[1758177169812,0.06,243.07,243.05,30.11437975]
[1758177170017,0.06,243.07,243.06,1.0]
[1758177170727,0.06,243.07,243.06,14.59559401]
[1758177172026,0.06,243.07,243.06,14.87991715]
[1758177173215,0.06,243.07,243.06,15.56991715]
[1758177173407,0.1,243.09,243.08,39.87991715]
[1758177173607,1e-08,243.09,243.08,39.87991715]
[1758177173822,1e-08,243.09,243.08,40.56991715]
[1758177176824,1e-08,243.12,243.11,26.0]
[1758177177036,1e-08,243.12,243.11,13.87991715]
[1758177177241,1e-08,243.12,243.11,14.56991715]
[1758177178511,1e-08,243.12,243.11,14.98125358]
[1758177178839,1e-08,243.12,243.11,19.0946179]
[1758177179451,1e-08,243.12,243.11,45.0946179]
[1758177179745,1e-08,243.12,243.11,19.0946179]
[1758177180338,1e-08,243.14,243.13,39.59559401]
[1758177180529,1e-08,243.14,243.13,40.29121974]
[1758177180835,1e-08,243.14,243.13,39.87991715]
[1758177181345,1e-08,243.14,243.13,13.87991715]
[1758177181519,0.66000001,243.14,243.13,39.59559401]
[1758177181837,0.66000001,243.14,243.13,39.73775558]
[1758177182036,0.66000001,243.14,243.13,13.73775558]
[1758177182221,1e-08,243.14,243.13,17.9929431]
[1758177182422,1e-08,243.14,243.13,43.9929431]
[1758177182734,1e-08,243.14,243.13,17.9929431]
[1758177183627,0.68000001,243.14,243.13,17.9929431]
[1758177184015,0.68000001,243.14,243.11,4.11323394]
[1758177184217,1e-08,243.14,243.11,4.11323394]
[1758177184424,1e-08,243.14,243.12,26.0]
[1758177184942,0.68,243.13,243.12,26.0]
[1758177187642,1e-08,243.14,243.13,30.11302595]
[1758177187944,1e-08,243.14,243.13,43.9929431]
[1758177190551,0.68000001,243.14,243.13,30.11302595]
[1758177190936,0.68000001,243.14,243.13,26.0]
[1758177191247,0.68000001,243.14,243.1,4.11353352]
[1758177191452,0.68,243.13,243.12,26.0]
[1758177192138,0.68,243.13,243.12,30.11319512]
[1758177192533,1e-08,243.14,243.12,30.11319512]
[1758177192742,1e-08,243.14,243.13,13.87991715]
[1758177194434,1e-08,243.14,243.13,39.87991715]
[1758177194631,1e-08,243.14,243.13,39.90991715]
[1758177194938,1e-08,243.14,243.13,13.90991715]
[1758177195145,1e-08,243.14,243.13,40.58991715]
[1758177195657,1e-08,243.14,243.13,39.90991715]
[1758177197956,1e-08,243.14,243.13,121.38991715]
[1758177198652,0.06,243.17,243.16,39.59559401]
[1758177198862,0.06,243.17,243.16,39.87991715]
[1758177199047,0.16,243.29,243.23,39.59559401]
[1758177199355,1e-08,243.25,243.24,13.87991715]
[1758177199527,1e-08,243.25,243.24,26.28432314]
[1758177199833,1e-08,243.25,243.24,39.87991715]
[1758177200148,1e-08,243.25,243.18,0.41121802]
[1758177200334,0.68000001,243.25,243.21,13.73775558]
[1758177200643,0.68,243.24,243.23,4.11133495]
[1758177203543,1e-08,243.25,243.23,4.11133495]
[1758177203943,1e-08,243.25,243.24,13.87991715]
[1758177205949,0.68000001,243.25,243.23,84.91133495]
[1758177206258,0.68,243.24,243.23,98.7912521]
[1758177207256,1e-08,243.25,243.24,13.87991715]
[1758177208753,0.68000001,243.25,243.23,4.11133495]
[1758177208931,1e-08,243.25,243.23,4.11133495]
[1758177209250,1e-08,243.25,243.24,26.0]
[1758177209928,0.68000001,243.25,243.24,26.0]
[1758177211843,0.68000001,243.25,243.18,13.59559401]
[1758177212046,0.68,243.24,243.14,10.28205689]
[1758177212242,2.34866558,243.22,243.15,17.70828165]
[1758177212442,0.68,243.21,243.16,0.28432314]
[1758177212663,0.68,243.2,243.18,26.0]
[1758177212957,0.7,243.2,243.18,26.0]
[1758177214264,0.7,243.2,243.19,4.11201118]
[1758177214853,2.40866558,243.24,243.2,26.0]
[1758177215039,0.06,243.24,243.2,26.0]
[1758177216266,0.06,243.24,243.21,14.39085562]
[1758177217249,0.06,243.24,243.21,10.27918259]
[1758177218966,0.06,243.24,243.23,26.0]
[1758177219166,0.06,243.24,243.23,39.87991715]
[1758177220252,0.06,243.24,243.23,43.9912521]
[1758177221848,0.06,243.24,243.23,30.11133495]
[1758177222050,0.76,243.24,243.23,30.11133495]
[1758177222642,0.06,243.24,243.23,30.11133495]
[1758177223465,0.76,243.24,243.23,30.11133495]
[1758177223662,0.76,243.24,243.21,30.11154891]
[1758177223865,0.7,243.23,243.21,30.11154891]
[1758177224056,0.7,243.22,243.21,30.11154891]
[1758177224573,0.06,243.24,243.21,4.11154891]
[1758177224756,0.76,243.24,243.21,4.11154891]
[1758177224956,0.06,243.24,243.21,14.3907315]
[1758177225366,0.06,243.24,243.22,13.87991715]
[1758177225973,0.06,243.24,243.23,17.9912521]
[1758177227371,1e-08,243.25,243.23,18.6112521]
[1758177228086,1e-08,243.25,243.24,0.62]
[1758177228455,1e-08,243.25,243.24,14.49991715]
[1758177229473,1e-08,243.25,243.24,13.87991715]
[1758177231673,1e-08,243.25,243.24,14.49991715]
[1758177232183,1e-08,243.25,243.24,13.87991715]
[1758177233378,1e-08,243.25,243.24,14.49991715]
[1758177233979,1e-08,243.25,243.24,13.87991715]
[1758177236185,1e-08,243.25,243.24,14.49991715]
[1758177236984,1e-08,243.25,243.24,13.87991715]
[1758177238882,0.70000001,243.25,243.24,26.0]
[1758177239085,0.70000001,243.25,243.24,39.59559401]
[1758177239281,0.70000001,243.25,243.24,26.0]
[1758177240700,0.70000001,243.25,243.23,4.14133495]
[1758177240885,1e-08,243.25,243.24,26.0]
[1758177241482,0.72000001,243.25,243.24,26.0]
[1758177242014,3.06866559,243.25,243.23,4.14129287]
[1758177242208,0.72,243.24,243.23,4.14129287]
[1758177242500,0.72,243.24,243.23,0.03]
[1758177244006,3.06866558,243.24,243.23,0.03]
[1758177246080,0.72,243.24,243.23,0.03]
[1758177247499,3.06866558,243.24,243.23,0.03]
[1758177248102,0.72,243.24,243.23,0.03]
[1758177248812,1e-08,243.25,243.23,0.03]
[1758177249319,1e-08,243.25,243.24,26.0]
[1758177250724,1e-08,243.25,243.24,30.11116592]
[1758177253416,0.68000001,243.25,243.24,30.11116592]
[1758177255784,0.68000001,243.25,243.23,0.03]
[1758177256018,0.68000001,243.25,243.23,26.03]
[1758177256321,1e-08,243.25,243.24,4.11116592]
[1758177256488,0.68000001,243.25,243.24,4.11116592]
[1758177257120,0.68000001,243.25,243.23,0.03]
[1758177257317,2.18181287,243.25,243.23,0.03]
[1758177257723,0.68000001,243.25,243.23,4.14124045]
[1758177257927,2.18181286,243.24,243.23,0.03]
[1758177258815,0.68,243.24,243.23,0.03]
[1758177259207,2.18181286,243.24,243.23,0.03]
[1758177260606,0.68,243.24,243.23,0.03]
[1758177261121,2.18181286,243.24,243.23,0.03]
[1758177262024,1e-08,243.25,243.23,0.03]
[1758177262826,0.68000001,243.25,243.23,0.03]
[1758177264231,0.68,243.24,243.23,0.03]
[1758177268722,1e-08,243.25,243.23,0.03]
[1758177270513,1e-08,243.25,243.24,26.0]
[1758177270720,1e-08,243.25,243.24,40.21559401]
[1758177272623,1e-08,243.25,243.24,44.32675993]
[1758177272924,1e-08,243.25,243.24,44.61108307]
[1758177274536,1e-08,243.25,243.24,43.99108307]
[1758177274726,1e-08,243.25,243.24,44.61108307]
[1758177275954,1e-08,243.25,243.24,43.99108307]
[1758177276439,1e-08,243.25,243.24,44.61108307]
[1758177278144,1e-08,243.25,243.24,43.99108307]
[1758177279143,1e-08,243.25,243.24,44.61108307]
[1758177279441,1e-08,243.28,243.27,26.0]
[1758177279857,1e-08,243.28,243.27,26.62]
[1758177280236,1e-08,243.28,243.27,40.49991715]
[1758177281252,1e-08,243.28,243.27,44.61057608]
[1758177281629,1e-08,243.29,243.28,13.87991715]
[1758177281850,1e-08,243.29,243.28,14.49991715]
[1758177282265,1e-08,243.3,243.28,14.49991715]
[1758177282454,1e-08,243.3,243.29,14.49991715]
[1758177283035,1e-08,243.3,243.29,18.61023816]
[1758177284767,1e-08,243.3,243.29,17.99023816]
[1758177286960,0.67000001,243.3,243.29,17.99023816]
[1758177288767,1e-08,243.3,243.29,17.99023816]
[1758177289064,1e-08,243.3,243.29,18.61023816]
[1758177289663,0.06,243.31,243.3,13.87991715]
[1758177289664,1e-08,243.31,243.3,13.87991715]
[1758177289868,1e-08,243.31,243.3,14.49991715]
[1758177290048,1e-08,243.32,243.3,14.49991715]
[1758177290863,1e-08,243.32,243.31,17.98990029]
[1758177292463,0.67000001,243.32,243.31,17.70557715]
[1758177295966,1e-08,243.32,243.31,17.70557715]
[1758177296367,1e-08,243.32,243.31,17.98990029]
[1758177296744,1e-08,243.32,243.31,18.48990029]
[1758177300266,0.2,243.39,243.32,13.87991715]
[1758177300451,6.68817067,243.57,243.32,13.87991715]
[1758177300452,1e-08,243.49,243.47,26.0]
[1758177300654,1e-08,243.49,243.47,39.59559401]
[1758177300854,1e-08,243.49,243.48,0.28432314]
[1758177301254,1e-08,243.49,243.48,15.52293126]
[1758177301453,0.69000001,243.49,243.48,15.52293126]
[1758177301767,1e-08,243.49,243.48,16.03364261]
[1758177302073,1e-08,243.49,243.48,22.78366242]
[1758177302271,1.64274421,243.74,243.53,0.28432314]
[1758177302475,0.69,243.63,243.58,13.87991715]
[1758177302776,1e-08,243.59,243.58,39.87991715]
[1758177303580,1e-08,243.59,243.58,112.42267534]
[1758177303879,1e-08,243.59,243.58,114.06494743]
[1758177304055,1e-08,243.59,243.58,118.1703748]
[1758177304254,0.66000001,243.59,243.58,106.10608609]
[1758177305656,0.66000001,243.59,243.58,66.22616894]
[1758177305852,0.66000001,243.59,243.58,64.58389685]
[1758177306860,1e-08,243.59,243.58,64.58389685]
[1758177307066,0.66000001,243.59,243.58,64.58389685]
[1758177307983,0.66000001,243.59,243.58,78.17949086]
[1758177308393,1e-08,243.59,243.58,78.17949086]
[1758177309090,1e-08,243.59,243.58,78.463814]
[1758177309775,1e-08,243.59,243.58,80.10628839]
[1758177311464,1e-08,243.59,243.58,80.20628839]
[1758177311970,1e-08,243.59,243.58,80.10628839]
[1758177313378,1e-08,243.59,243.58,92.08724377]
[1758177316092,1e-08,243.59,243.58,172.88724377]
[1758177316577,1e-08,243.59,243.58,172.78724377]
[1758177316996,1e-08,243.59,243.58,172.88724377]
[1758177317789,0.66,243.68,243.63,0.28432314]
[1758177318288,0.66,243.68,243.67,39.87991715]
[1758177319015,0.66,243.68,243.67,41.52165]
[1758177320305,0.1,243.69,243.68,4.10374261]
[1758177321086,0.1,243.69,243.68,5.74547546]
[1758177321286,0.76,243.69,243.68,5.74547546]
[1758177322993,0.76,243.69,243.68,19.62539261]
[1758177323801,0.1,243.79,243.72,39.59559401]
[1758177324015,0.1,243.79,243.73,0.28432314]
[1758177324513,0.66,243.78,243.73,2.62126555]
[1758177324685,0.1,243.79,243.77,26.0]
[1758177325013,0.1,243.79,243.78,4.10205923]
[1758177325812,0.76,243.79,243.78,4.10205923]
[1758177327794,0.1,243.79,243.78,17.69765324]
[1758177327984,0.76,243.79,243.78,17.69765324]
[1758177328707,0.1,243.79,243.78,17.98197638]
[1758177329405,0.1,243.84,243.81,26.0]
[1758177329610,0.1,243.84,243.83,0.28432314]
[1758177329905,0.76,243.84,243.83,0.28432314]
[1758177330486,0.76,243.84,243.83,4.3855412]
[1758177330695,0.76,243.84,243.82,4.10132779]
[1758177330891,0.66,243.83,243.82,4.10132779]
[1758177331917,0.66,243.83,243.81,13.59559401]
[1758177332112,0.66,243.82,243.81,26.0]
[1758177332629,0.66,243.82,243.76,12.16194793]
[1758177332923,0.66,243.81,243.76,12.16194793]
[1758177333121,0.66,243.8,243.76,12.16194793]
[1758177333335,0.66,243.79,243.75,30.10248427]
[1758177333500,0.66,243.78,243.75,30.10248427]
[1758177333694,0.66,243.77,243.75,30.10248427]
[1758177333916,0.66,243.76,243.75,17.69807828]
[1758177335000,0.66,243.79,243.74,40.35947678]
[1758177335217,0.66,243.79,243.75,13.87991715]
[1758177335895,0.66,243.82,243.81,13.87991715]
[1758177336322,0.1,243.84,243.81,13.87991715]
[1758177336611,0.1,243.84,243.83,39.59559401]
[1758177337521,0.1,243.84,243.83,43.69681207]
[1758177337728,0.76,243.84,243.78,26.0]
[1758177337925,0.66,243.83,243.79,26.0]
[1758177338104,0.66,243.82,243.79,26.0]
[1758177338304,0.1,243.84,243.83,39.59559401]
[1758177339412,0.1,243.84,243.83,43.69681207]
[1758177339413,0.76,243.84,243.83,43.69681207]
[1758177342620,0.1,243.84,243.83,43.98113521]
[1758177342934,0.76,243.89,243.84,13.59559401]
[1758177342935,0.66,243.87,243.84,13.59559401]
[1758177343515,0.66,243.87,243.83,30.10121806]
[1758177343734,2.33694241,243.89,243.83,30.10121806]
[1758177343911,4.76083927,243.86,243.79,0.03]
[1758177344114,4.76083927,243.86,243.61,0.1]
[1758177344115,2.33694241,243.8,243.61,0.1]
[1758177344349,2.33694241,243.77,243.64,10.26090197]
[1758177344524,0.66,243.76,243.62,4.1047533]
[1758177344835,2.33694241,243.66,243.61,0.1]
[1758177345041,2.33694241,243.72,243.61,0.1]
[1758177345231,2.33694241,243.62,243.61,0.1]
[1758177345443,2.33694241,243.62,243.61,3.14899741]
[1758177346040,2.33694241,243.62,243.61,29.14899741]
[1758177346341,2.33694241,243.62,243.61,3.14899741]
[1758177346550,2.33694241,243.62,243.61,26.1]
[1758177347044,2.33694241,243.65,243.62,4.1047533]
[1758177347245,0.66,243.71,243.62,30.1047533]
[1758177347433,2.33694241,243.69,243.62,30.1047533]
[1758177347612,2.33694241,243.69,243.63,13.87991715]
[1758177347808,5.30771098,243.7,243.64,14.36545722]
[1758177348752,5.30771098,243.69,243.64,4.10441635]
[1758177349624,0.66,243.68,243.61,26.1]
[1758177349935,5.30771098,243.62,243.61,30.20484562]
[1758177350858,5.30771098,243.63,243.61,30.20484562]
[1758177351131,5.30771098,243.62,243.61,0.1]
[1758177355717,0.66,243.68,243.61,0.1]
[1758177355918,5.30771098,243.62,243.61,0.1]
[1758177357221,5.96771098,243.62,243.61,0.1]
[1758177359328,0.66,243.62,243.61,0.1]
[1758177359530,5.96771098,243.62,243.61,0.1]
[1758177361854,0.7,243.66,243.61,0.1]
[1758177362056,5.30771098,243.62,243.61,0.1]
[1758177362431,6.00771098,243.62,243.61,0.1]
[1758177363330,5.30771098,243.62,243.61,0.1]
[1758177363932,5.30771098,243.63,243.61,0.1]
[1758177364754,5.30771098,243.63,243.61,4.20478489]
[1758177365735,5.30771098,243.62,243.61,4.20478489]